fUST/lending_fUST_20260118
["ID","MTS","AMOUNT","RATE_DAILY","PERIOD"]
[402389156,1768671040078,-3000.0,0.00016428,2]
[402389158,1768671040089,-500.0,0.00016438,3]
[402389160,1768671040099,-500.0,0.00016438,3]
[402389162,1768671040108,-500.0,0.00016438,3]
[402389164,1768671040118,-500.0,0.00016438,3]
[402389166,1768671040128,-500.0,0.00016438,3]
[402389168,1768671040138,-500.0,0.00016438,3]
[402389170,1768671040148,-650.23,0.00016438,3]
[402389172,1768671040157,-500.0,0.00016438,3]
[402389175,1768671040167,-504.49,0.00016438,3]
[402389176,1768671040177,-500.0,0.00016438,3]
[402389178,1768671040186,-500.0,0.00016438,3]
[402389180,1768671040195,-500.0,0.00016438,3]
[402389182,1768671040205,-500.0,0.00016438,3]
[402389185,1768671040214,-1020.29,0.00016438,3]
[402389187,1768671040224,-500.0,0.00016438,3]
[402389189,1768671040234,-500.0,0.00016438,3]
[402389191,1768671040243,-500.0,0.00016438,3]
[402389193,1768671040253,-513.67,0.00016438,3]
[402389195,1768671040262,-500.0,0.00016438,3]
[402389197,1768671040271,-2425.52140921,0.00016438,3]
[402389198,1768671040280,-630.36,0.00016438,3]
[402389200,1768671040289,-500.0,0.00016438,3]
[402389202,1768671040299,-500.0,0.00016438,3]
[402389204,1768671040308,-500.0,0.00016438,3]
[402389206,1768671040317,-500.0,0.00016438,3]
[402389208,1768671040327,-641.57,0.00016438,3]
[402389210,1768671040336,-560.77,0.00016438,3]
[402389212,1768671040346,-500.0,0.00016438,3]
[402389214,1768671040355,-550.82,0.00016438,3]
[402389216,1768671040365,-601.93,0.00016438,3]
[402389218,1768671040374,-500.0,0.00016438,3]
[402389220,1768671040384,-607.92,0.00016438,3]
[402389222,1768671040393,-878.57,0.00016438,3]
[402389225,1768671040403,-500.0,0.00016438,3]
[402389227,1768671040415,-500.0,0.00016438,3]
[402389229,1768671040424,-500.0,0.00016438,3]
[402389231,1768671040434,-500.0,0.00016438,3]
[402389233,1768671040443,-500.0,0.00016438,3]
[402389235,1768671040453,-605.26,0.00016438,3]
[402389237,1768671040463,-500.0,0.00016438,3]
[402389239,1768671040473,-500.0,0.00016438,3]
[402389241,1768671040483,-500.0,0.00016438,3]
[402389243,1768671040492,-500.0,0.00016438,3]
[402389245,1768671040502,-500.0,0.00016438,3]
[402389247,1768671040511,-836.17,0.00016438,3]
[402389249,1768671040521,-500.0,0.00016438,3]
[402389251,1768671040530,-500.0,0.00016438,3]
[402389253,1768671040540,-500.0,0.00016438,3]
[402389255,1768671040550,-500.0,0.00016438,3]
[402389257,1768671040559,-500.0,0.00016438,3]
[402389259,1768671040568,-500.0,0.00016438,3]
[402389261,1768671040578,-500.0,0.00016438,3]
[402389263,1768671040587,-516.72,0.00016438,3]
[402389265,1768671040596,-500.0,0.00016438,3]
[402389267,1768671040606,-500.0,0.00016438,3]
[402389269,1768671040616,-500.0,0.00016438,3]
[402389271,1768671040625,-500.0,0.00016438,3]
[402389273,1768671040634,-500.0,0.00016438,3]
[402389275,1768671040644,-500.0,0.00016438,3]
[402389277,1768671040653,-500.0,0.00016438,3]
[402389279,1768671040663,-500.0,0.00016438,3]
[402389281,1768671040672,-1069.93,0.00016438,3]
[402389283,1768671040681,-500.0,0.00016438,3]
[402389285,1768671040690,-500.0,0.00016438,3]
[402389287,1768671040699,-958.52,0.00016438,3]
[402389289,1768671040708,-1014.43,0.00016438,3]
[402389291,1768671040718,-499.45750772,0.00016438,3]
[402389293,1768671040727,-500.0,0.00016438,3]
[402389295,1768671040737,-537.39,0.00016438,3]
[402389297,1768671040747,-500.0,0.00016438,3]
[402389299,1768671040756,-500.0,0.00016438,3]
[402389301,1768671040766,-827.72,0.00016438,3]
[402389303,1768671040775,-500.0,0.00016438,3]
[402389305,1768671040784,-507.04,0.00016438,3]
[402389307,1768671040794,-596.27964046,0.00016438,3]
[402389309,1768671040803,-500.0,0.00016438,3]
[402389311,1768671040813,-500.0,0.00016438,3]
[402389313,1768671040822,-571.17,0.00016438,3]
[402389315,1768671040831,-500.0,0.00016438,3]
[402389317,1768671040840,-500.0,0.00016438,3]
[402389319,1768671040850,-500.0,0.00016438,3]
[402389321,1768671040860,-796.71,0.00016438,3]
[402389323,1768671040869,-500.0,0.00016438,3]
[402389325,1768671040878,-500.0,0.00016438,3]
[402389327,1768671040888,-759.51,0.00016438,3]
[402389329,1768671040897,-500.0,0.00016438,3]
[402389331,1768671040908,-663.56,0.00016438,3]
[402389333,1768671040918,-500.0,0.00016438,3]
[402389335,1768671040927,-500.0,0.00016438,3]
[402389337,1768671040937,-897.92,0.00016438,3]
[402389339,1768671040947,-1002.46,0.00016438,3]
[402389341,1768671040957,-500.0,0.00016438,3]
[402389343,1768671040966,-500.0,0.00016438,3]
[402389345,1768671040975,-569.16,0.00016438,3]
[402389347,1768671040987,-500.0,0.00016438,3]
[402389348,1768671040996,-500.0,0.00016438,3]
[402389351,1768671041006,-500.0,0.00016438,3]
[402389352,1768671041015,-973.03,0.00016438,3]
[402389355,1768671041025,-500.0,0.00016438,3]
[402389357,1768671041034,-500.0,0.00016438,3]
[402389358,1768671041045,-500.0,0.00016438,3]
[402389360,1768671041054,-500.0,0.00016438,3]
[402389362,1768671041064,-500.0,0.00016438,3]
[402389364,1768671041073,-641.86882596,0.00016438,3]
[402389366,1768671041083,-387.48,0.00016438,3]
[402389368,1768671041092,-1145.84,0.00016438,3]
[402389371,1768671041102,-500.0,0.00016438,3]
[402389373,1768671041112,-1036.57,0.00016438,3]
[402389374,1768671041121,-500.0,0.00016438,3]
[402389376,1768671041131,-500.0,0.00016438,3]
[402389378,1768671041141,-500.0,0.00016438,3]
[402389381,1768671041151,-500.0,0.00016438,3]
[402389383,1768671041162,-500.0,0.00016438,3]
[402389385,1768671041172,-500.0,0.00016438,3]
[402389386,1768671041181,-500.0,0.00016438,3]
[402389389,1768671041191,-626.78,0.00016438,3]
[402389390,1768671041200,-500.0,0.00016438,3]
[402389391,1768671041209,-1372.3,0.00016438,3]
[402389392,1768671041218,-500.0,0.00016438,3]
[402389393,1768671041227,-582.01,0.00016438,3]
[402389394,1768671041237,-500.0,0.00016438,3]
[402389395,1768671041247,-834.09,0.00016438,3]
[402389396,1768671041255,-317.19577673,0.00016438,3]
[402389397,1768671041264,-500.0,0.00016438,3]
[402389398,1768671041273,-593.76,0.00016438,3]
[402389399,1768671041282,-364.34256589,0.00016438,3]
[402389400,1768671041291,-585.52,0.00016438,3]
[402389401,1768671041300,-500.0,0.00016438,3]
[402389402,1768671041309,-500.0,0.00016438,3]
[402389403,1768671041318,-500.0,0.00016438,3]
[402389404,1768671041327,-500.0,0.00016438,3]
[402389405,1768671041335,-1269.07,0.00016438,3]
[402389406,1768671041344,-500.0,0.00016438,3]
[402389407,1768671041353,-500.0,0.00016438,3]
[402389408,1768671041362,-427.71575983,0.00016438,3]
[402389409,1768671041371,-500.0,0.00016438,3]
[402389410,1768671041379,-500.0,0.00016438,3]
[402389411,1768671041388,-672.51,0.00016438,3]
[402389412,1768671041397,-802.1,0.00016438,3]
[402389413,1768671041406,-500.0,0.00016438,3]
[402389414,1768671041415,-811.08,0.00016438,3]
[402389415,1768671041423,-500.0,0.00016438,3]
[402389416,1768671041432,-788.34,0.00016438,3]
[402389417,1768671041441,-500.0,0.00016438,3]
[402389418,1768671041450,-903.37,0.00016438,3]
[402389419,1768671041459,-548.66,0.00016438,3]
[402389421,1768671041468,-717.06,0.00016438,3]
[402389422,1768671041477,-500.0,0.00016438,3]
[402389424,1768671041486,-500.0,0.00016438,3]
[402389426,1768671041495,-500.0,0.00016438,3]
[402389428,1768671041505,-500.0,0.00016438,3]
[402389430,1768671041513,-500.0,0.00016438,3]
[402389432,1768671041523,-627.53,0.00016438,3]
[402389434,1768671041532,-500.0,0.00016438,3]
[402389436,1768671041541,-542.64,0.00016438,3]
[402389438,1768671041551,-500.0,0.00016438,3]
[402389474,1768671041863,-1215.79,0.00016438,3]
[402389477,1768671041881,-508.66,0.00016438,3]
[402389479,1768671041891,-500.0,0.00016438,3]
[402389481,1768671041900,-500.0,0.00016438,3]
[402389483,1768671041913,-500.0,0.00016438,3]
[402389485,1768671041923,-500.0,0.00016438,3]
[402389487,1768671041932,-695.75,0.00016438,3]
[402389489,1768671041942,-500.0,0.00016438,3]
[402389491,1768671041952,-500.0,0.00016438,3]
[402389493,1768671041962,-500.0,0.00016438,3]
[402389495,1768671041972,-1159.94,0.00016438,3]
[402389497,1768671041983,-527.91,0.00016438,3]
[402389499,1768671041993,-609.82,0.00016438,3]
[402389501,1768671042003,-500.0,0.00016438,3]
[402389503,1768671042012,-500.0,0.00016438,3]
[402389505,1768671042022,-500.0,0.00016438,3]
[402389507,1768671042032,-539.12,0.00016438,3]
[402389509,1768671042041,-500.0,0.00016438,3]
[402389511,1768671042050,-500.0,0.00016438,3]
[402389513,1768671042060,-1200.0,0.00016438,2]
[402389515,1768671042068,-500.0,0.00016438,3]
[402389517,1768671042078,-500.0,0.00016438,3]
[402389519,1768671042087,-500.0,0.00016438,3]
[402389521,1768671042097,-1064.85,0.00016438,3]
[402389523,1768671042106,-500.0,0.00016438,3]
[402389525,1768671042117,-784.89,0.00016438,3]
[402389527,1768671042127,-500.0,0.00016438,3]
[402389529,1768671042136,-500.0,0.00016438,3]
[402389531,1768671042145,-500.0,0.00016438,3]
[402389533,1768671042155,-500.0,0.00016438,3]
[402389535,1768671042164,-500.0,0.00016438,3]
[402389537,1768671042174,-500.0,0.00016438,3]
[402389539,1768671042183,-500.0,0.00016438,3]
[402389541,1768671042193,-500.0,0.00016438,3]
[402389543,1768671042203,-546.6,0.00016438,3]
[402389545,1768671042213,-500.0,0.00016438,3]
[402389547,1768671042222,-500.0,0.00016438,3]
[402389549,1768671042231,-500.0,0.00016438,3]
[402389551,1768671042242,-500.0,0.00016438,3]
[402389553,1768671042251,-189.36752866,0.00016438,3]
[402389555,1768671042262,-1291.66,0.00016438,3]
[402389557,1768671042271,-582.71,0.00016438,3]
[402389559,1768671042282,-500.0,0.00016438,3]
[402389561,1768671042291,-500.0,0.00016438,3]
[402389563,1768671042301,-1368.73,0.00016438,3]
[402389565,1768671042310,-601.73,0.00016438,3]
[402389567,1768671042319,-616.3,0.00016438,3]
[402389569,1768671042329,-500.0,0.00016438,3]
[402389571,1768671042339,-500.0,0.00016438,3]
[402389573,1768671042348,-500.0,0.00016438,3]
[402389575,1768671042358,-1673.42,0.00016438,3]
[402389577,1768671042367,-500.0,0.00016438,3]
[402389579,1768671042376,-500.0,0.00016438,3]
[402389581,1768671042386,-500.0,0.00016438,3]
[402389583,1768671042396,-500.0,0.00016438,3]
[402389585,1768671042405,-1024.71,0.00016438,3]
[402389587,1768671042414,-500.0,0.00016438,3]
[402389589,1768671042423,-500.0,0.00016438,3]
[402389591,1768671042432,-500.0,0.00016438,3]
[402389593,1768671042441,-625.69,0.00016438,3]
[402389595,1768671042451,-583.28,0.00016438,3]
[402389597,1768671042460,-500.0,0.00016438,3]
[402389599,1768671042469,-500.0,0.00016438,3]
[402389601,1768671042479,-500.0,0.00016438,3]
[402389603,1768671042488,-759.13,0.00016438,3]
[402389605,1768671042497,-500.0,0.00016438,3]
[402389607,1768671042506,-989.22,0.00016438,3]
[402389609,1768671042515,-500.0,0.00016438,3]
[402389611,1768671042524,-219.46250361,0.00016438,3]
[402389613,1768671042534,-500.0,0.00016438,3]
[402389615,1768671042543,-500.0,0.00016438,3]
[402389618,1768671042552,-928.98,0.00016438,3]
[402389621,1768671042563,-500.0,0.00016438,3]
[402389623,1768671042572,-775.35,0.00016438,3]
[402389625,1768671042581,-500.0,0.00016438,3]
[402389627,1768671042590,-500.0,0.00016438,3]
[402389629,1768671042600,-701.07,0.00016438,3]
[402389631,1768671042610,-500.0,0.00016438,3]
[402389633,1768671042619,-500.0,0.00016438,3]
[402389635,1768671042628,-221.45298763,0.00016438,3]
[402389637,1768671042637,-500.0,0.00016438,3]
[402389640,1768671042646,-500.0,0.00016438,3]
[402389643,1768671042655,-522.78394003,0.00016438,3]
[402389646,1768671042665,-988.19,0.00016438,3]
[402389648,1768671042674,-240.64640353,0.00016438,3]
[402389650,1768671042684,-500.0,0.00016438,3]
[402389652,1768671042693,-500.0,0.00016438,3]
[402389654,1768671042702,-500.0,0.00016438,3]
[402389656,1768671042711,-659.44,0.00016438,3]
[402389658,1768671042720,-500.0,0.00016438,3]
[402389660,1768671042729,-500.0,0.00016438,3]
[402389662,1768671042739,-500.0,0.00016438,3]
[402389664,1768671042748,-558.68,0.00016438,3]
[402389666,1768671042757,-908.66,0.00016438,3]
[402389669,1768671042767,-500.0,0.00016438,3]
[402389672,1768671042776,-500.0,0.00016438,3]
[402389675,1768671042785,-909.08,0.00016438,3]
[402389678,1768671042795,-836.07,0.00016438,3]
[402389681,1768671042804,-500.0,0.00016438,3]
[402389684,1768671042813,-500.0,0.00016438,3]
[402389687,1768671042823,-500.0,0.00016438,3]
[402389690,1768671042832,-516.54,0.00016438,3]
[402389693,1768671042842,-895.09,0.00016438,3]
[402389696,1768671042853,-481.66364673,0.00016438,3]
[402389698,1768671042862,-500.0,0.00016438,3]
[402389700,1768671042871,-591.73,0.00016438,3]
[402389702,1768671042881,-500.0,0.00016438,3]
[402389704,1768671042890,-500.0,0.00016438,3]
[402389706,1768671042899,-500.0,0.00016438,3]
[402389708,1768671042911,-500.0,0.00016438,3]
[402389710,1768671042921,-500.0,0.00016438,3]
[402389712,1768671042930,-500.0,0.00016438,2]
[402389714,1768671042940,-500.0,0.00016438,2]
[402389716,1768671042951,-305.46837696,0.00016438,2]
[402389718,1768671042960,-1000.0,0.00016438,2]
[402389720,1768671042971,-881.52,0.00016438,3]
[402389722,1768671042980,-500.0,0.00016438,3]
[402389724,1768671042990,-500.0,0.00016438,3]
[402389726,1768671043000,-500.0,0.00016438,3]
[402389728,1768671043010,-580.6,0.00016438,3]
[402389730,1768671043019,-500.0,0.00016438,3]
[402389732,1768671043029,-500.0,0.00016438,3]
[402389734,1768671043038,-500.0,0.00016438,3]
[402389736,1768671043047,-997.55,0.00016438,3]
[402389738,1768671043057,-986.56,0.00016438,3]
[402389741,1768671043069,-726.48,0.00016438,3]
[402389743,1768671043078,-500.0,0.00016438,3]
[402389745,1768671043087,-527.03,0.00016438,3]
[402389747,1768671043097,-711.42,0.00016438,3]
[402389748,1768671043106,-500.0,0.00016438,3]
[402389751,1768671043116,-500.0,0.00016438,3]
[402389753,1768671043125,-500.0,0.00016438,3]
[402389755,1768671043135,-500.0,0.00016438,3]
[402389757,1768671043145,-681.68,0.00016438,3]
[402389759,1768671043154,-500.0,0.00016438,3]
[402389760,1768671043163,-1383.24,0.00016438,3]
[402389763,1768671043173,-500.0,0.00016438,3]
[402389765,1768671043183,-500.0,0.00016438,3]
[402389767,1768671043192,-500.0,0.00016438,3]
[402389768,1768671043201,-500.0,0.00016438,3]
[402389770,1768671043210,-500.0,0.00016438,3]
[402389773,1768671043220,-500.0,0.00016438,3]
[402389774,1768671043231,-500.0,0.00016438,3]
[402389776,1768671043240,-500.0,0.00016438,3]
[402389778,1768671043249,-500.0,0.00016438,3]
[402389780,1768671043258,-510.84888656,0.00016438,3]
[402389782,1768671043268,-901.14,0.00016438,3]
[402389784,1768671043277,-500.0,0.00016438,3]
[402389786,1768671043286,-1427.95,0.00016438,3]
[402389788,1768671043295,-97.376634,0.00016438,3]
[402389826,1768671043642,-125.19625514,0.00016438,3]
[402389828,1768671043651,-500.0,0.00016438,3]
[402389830,1768671043661,-500.0,0.00016438,3]
[402389832,1768671043671,-500.0,0.00016438,3]
[402389834,1768671043680,-500.0,0.00016438,3]
[402389836,1768671043689,-500.0,0.00016438,3]
[402389838,1768671043699,-562.06,0.00016438,3]
[402389840,1768671043708,-500.0,0.00016438,3]
[402389842,1768671043717,-631.24,0.00016438,3]
[402389844,1768671043727,-500.0,0.00016438,3]
[402389846,1768671043736,-500.0,0.00016438,3]
[402389848,1768671043745,-560.7285272,0.00016438,3]
[402389849,1768671043754,-500.0,0.00016438,3]
[402389850,1768671043763,-500.0,0.00016438,3]
[402389851,1768671043772,-986.41,0.00016438,3]
[402389852,1768671043781,-519.14,0.00016438,3]
[402389853,1768671043790,-1029.4,0.00016438,3]
[402389854,1768671043799,-735.01,0.00016438,3]
[402389855,1768671043807,-500.0,0.00016438,3]
[402389856,1768671043817,-500.0,0.00016438,3]
[402389857,1768671043826,-500.0,0.00016438,3]
[402389858,1768671043835,-172.631544,0.00016438,3]
[402389860,1768671043843,-500.0,0.00016438,3]
[402389862,1768671043853,-500.0,0.00016438,3]
[402389864,1768671043862,-500.0,0.00016438,3]
[402389866,1768671043872,-158.856128,0.00016438,3]
[402389868,1768671043882,-5359.27,0.00016438,3]
[402389870,1768671043891,-500.0,0.00016438,3]
[402389872,1768671043900,-568.35,0.00016438,3]
[402389874,1768671043913,-500.0,0.00016438,3]
[402389876,1768671043922,-1101.12,0.00016438,3]
[402389878,1768671043931,-500.0,0.00016438,3]
[402389880,1768671043941,-500.0,0.00016438,3]
[402389882,1768671043953,-500.0,0.00016438,3]
[402389884,1768671043962,-620.92,0.00016438,3]
[402389886,1768671043971,-1029.06,0.00016438,3]
[402389888,1768671043982,-500.0,0.00016438,3]
[402389890,1768671043991,-582.7,0.00016438,3]
[402389892,1768671044001,-506.73873249,0.00016438,3]
[402389894,1768671044011,-966.59,0.00016438,3]
[402389896,1768671044021,-601.92,0.00016438,3]
[402389899,1768671044030,-1318.28,0.00016438,3]
[402389901,1768671044040,-500.0,0.00016438,3]
[402389903,1768671044050,-870.32,0.00016438,3]
[402389905,1768671044060,-500.0,0.00016438,3]
[402389907,1768671044070,-1001.43,0.00016438,3]
[402389916,1768671044146,-500.0,0.00016438,3]
[402389918,1768671044155,-502.96,0.00016438,3]
[402389921,1768671044173,-500.0,0.00016438,3]
[402389923,1768671044184,-836.79,0.00016438,3]
[402389925,1768671044194,-1794.03,0.00016438,3]
[402389927,1768671044203,-500.0,0.00016438,3]
[402389929,1768671044214,-500.0,0.00016438,3]
[402389931,1768671044224,-500.0,0.00016438,3]
[402389933,1768671044234,-725.29,0.00016438,3]
[402389935,1768671044243,-1046.9,0.00016438,3]
[402389937,1768671044252,-500.0,0.00016438,3]
[402389939,1768671044262,-500.0,0.00016438,3]
[402389941,1768671044272,-500.0,0.00016438,3]
[402389943,1768671044281,-500.0,0.00016438,3]
[402389945,1768671044291,-500.0,0.00016438,3]
[402389947,1768671044301,-996.01,0.00016438,3]
[402389949,1768671044311,-500.0,0.00016438,3]
[402389951,1768671044320,-500.0,0.00016438,3]
[402389953,1768671044329,-621.3,0.00016438,3]
[402389955,1768671044339,-500.0,0.00016438,3]
[402389957,1768671044349,-1216.69,0.00016438,3]
[402389959,1768671044359,-595.68,0.00016438,3]
[402389962,1768671044370,-500.0,0.00016438,3]
[402389963,1768671044379,-308.42481472,0.00016438,3]
[402389966,1768671044389,-500.0,0.00016438,3]
[402389968,1768671044400,-500.0,0.00016438,3]
[402389970,1768671044410,-500.0,0.00016438,3]
[402389972,1768671044419,-711.04,0.00016438,3]
[402389974,1768671044428,-1115.46,0.00016438,3]
[402389976,1768671044438,-500.0,0.00016438,3]
[402389978,1768671044447,-1317.98,0.00016438,3]
[402389980,1768671044457,-500.0,0.00016438,3]
[402389982,1768671044466,-500.0,0.00016438,3]
[402389984,1768671044477,-813.28,0.00016438,3]
[402389986,1768671044486,-500.0,0.00016438,3]
[402389988,1768671044496,-500.0,0.00016438,3]
[402389990,1768671044505,-500.0,0.00016438,3]
[402389992,1768671044514,-636.74,0.00016438,3]
[402389994,1768671044523,-500.0,0.00016438,3]
[402389996,1768671044532,-513.07,0.00016438,3]
[402389998,1768671044541,-500.0,0.00016438,3]
[402390000,1768671044550,-500.0,0.00016438,3]
[402390002,1768671044559,-2411.01,0.00016438,3]
[402390003,1768671044569,-500.0,0.00016438,3]
[402390006,1768671044578,-500.0,0.00016438,3]
[402390008,1768671044588,-500.0,0.00016438,3]
[402390010,1768671044597,-286.8888167,0.00016438,3]
[402390012,1768671044606,-682.14,0.00016438,3]
[402390014,1768671044616,-969.48,0.00016438,3]
[402390016,1768671044625,-500.0,0.00016438,3]
[402390018,1768671044634,-500.0,0.00016438,3]
[402390020,1768671044643,-825.91,0.00016438,3]
[402390022,1768671044653,-500.0,0.00016438,3]
[402390024,1768671044662,-500.0,0.00016438,3]
[402390026,1768671044671,-500.0,0.00016438,3]
[402390028,1768671044680,-500.0,0.00016438,3]
[402390029,1768671044690,-500.0,0.00016438,3]
[402390031,1768671044699,-789.68,0.00016438,3]
[402390033,1768671044709,-724.51,0.00016438,3]
[402390035,1768671044718,-545.7,0.00016438,3]
[402390037,1768671044728,-500.0,0.00016438,3]
[402390040,1768671044737,-875.65,0.00016438,3]
[402390042,1768671044746,-999.93,0.00016438,3]
[402390043,1768671044756,-537.95,0.00016438,3]
[402390046,1768671044765,-500.0,0.00016438,3]
[402390048,1768671044775,-500.0,0.00016438,3]
[402390050,1768671044784,-653.95,0.00016438,3]
[402390051,1768671044794,-500.0,0.00016438,3]
[402390053,1768671044804,-500.0,0.00016438,3]
[402390055,1768671044813,-500.0,0.00016438,3]
[402390057,1768671044823,-500.0,0.00016438,3]
[402390059,1768671044832,-1201.07,0.00016438,3]
[402390061,1768671044841,-1091.93,0.00016438,3]
[402390063,1768671044850,-500.0,0.00016438,3]
[402390065,1768671044859,-500.0,0.00016438,3]
[402390067,1768671044869,-500.0,0.00016438,3]
[402390070,1768671044878,-794.33,0.00016438,3]
[402390072,1768671044888,-500.0,0.00016438,3]
[402390074,1768671044898,-1581.26,0.00016438,3]
[402390076,1768671044909,-316.32438621,0.00016438,3]
[402390078,1768671044926,-665.32,0.00016438,3]
[402390080,1768671044936,-1111.24,0.00016438,3]
[402390082,1768671044945,-622.6,0.00016438,3]
[402390084,1768671044955,-500.0,0.00016438,3]
[402390086,1768671044966,-689.01,0.00016438,3]
[402390088,1768671044976,-10183.15,0.00016438,3]
[402390090,1768671044985,-500.0,0.00016438,3]
[402390092,1768671044996,-500.0,0.00016438,3]
[402390094,1768671045007,-677.02,0.00016438,3]
[402390097,1768671045021,-500.0,0.00016438,3]
[402390099,1768671045030,-1541.04,0.00016438,3]
[402390101,1768671045040,-500.0,0.00016438,3]
[402390103,1768671045050,-500.0,0.00016438,3]
[402390105,1768671045060,-910.28,0.00016438,3]
[402390107,1768671045069,-805.7,0.00016438,3]
[402390109,1768671045080,-500.0,0.00016438,3]
[402390111,1768671045091,-500.0,0.00016438,3]
[402390113,1768671045101,-583.22605007,0.00016438,3]
[402390115,1768671045110,-526.86570409,0.00016438,3]
[402390117,1768671045121,-634.34,0.00016438,3]
[402390119,1768671045131,-500.0,0.00016438,3]
[402390121,1768671045140,-581.05,0.00016438,3]
[402390123,1768671045150,-500.0,0.00016438,3]
[402390126,1768671045160,-500.0,0.00016438,3]
[402390128,1768671045169,-500.0,0.00016438,3]
[402390130,1768671045179,-745.75,0.00016438,3]
[402390131,1768671045188,-1336.3,0.00016438,3]
[402390133,1768671045198,-831.03,0.00016438,3]
[402390136,1768671045208,-1833.99,0.00016438,3]
[402390138,1768671045217,-591.94,0.00016438,3]
[402390140,1768671045226,-500.0,0.00016438,3]
[402390142,1768671045236,-1153.65,0.00016438,3]
[402390144,1768671045245,-773.11,0.00016438,3]
[402390146,1768671045254,-1002.07,0.00016438,3]
[402390148,1768671045263,-500.0,0.00016438,3]
[402390150,1768671045272,-663.71,0.00016438,3]
[402390152,1768671045282,-1148.88,0.00016438,3]
[402390154,1768671045291,-500.0,0.00016438,3]
[402390155,1768671045300,-500.0,0.00016438,3]
[402390157,1768671045310,-692.63,0.00016438,3]
[402390159,1768671045319,-794.86,0.00016438,3]
[402390161,1768671045330,-1421.47,0.00016438,3]
[402390163,1768671045339,-500.0,0.00016438,3]
[402390166,1768671045351,-1000.0,0.00016438,2]
[402390168,1768671045360,-1397.22,0.00016438,3]
[402390170,1768671045369,-500.0,0.00016438,3]
[402390172,1768671045379,-500.0,0.00016438,3]
[402390174,1768671045388,-500.0,0.00016438,3]
[402390175,1768671045397,-781.54,0.00016438,3]
[402390178,1768671045407,-500.0,0.00016438,3]
[402390179,1768671045416,-500.0,0.00016438,3]
[402390181,1768671045426,-500.0,0.00016438,3]
[402390183,1768671045435,-500.0,0.00016438,3]
[402390185,1768671045445,-500.0,0.00016438,3]
[402390187,1768671045454,-500.0,0.00016438,3]
[402390189,1768671045463,-500.0,0.00016438,3]
[402390191,1768671045473,-500.0,0.00016438,3]
[402390193,1768671045483,-500.0,0.00016438,3]
[402390195,1768671045492,-978.04,0.00016438,3]
[402390199,1768671045501,-745.14,0.00016438,3]
[402390203,1768671045511,-500.0,0.00016438,3]
[402390206,1768671045520,-500.0,0.00016438,3]
[402390209,1768671045529,-427.39365242,0.00016438,3]
[402390213,1768671045539,-573.45,0.00016438,3]
[402390216,1768671045549,-2897.63,0.00016438,3]
[402390220,1768671045559,-991.13,0.00016438,3]
[402390223,1768671045572,-500.0,0.00016438,3]